[Event "FIDE WY-U16 Olympiad 2022"]
[Site "Nakhchivan"]
[Date "2022.10.04"]
[Round "3.28"]
[White "Dasgupta, Avyukt"]
[Black "Gambarova, Havva"]
[Result "1-0"]
[ECO "A45"]
[WhiteElo "1687"]
[BlackElo "1347"]
[Annotator "NA RC COMBH"]
[PlyCount "123"]
[EventDate "2022.10.02"]
[EventType "team-tourn"]
[EventCountry "AZE"]
[SourceTitle "playchess.com"]
[Source "ChessBase"]
[SourceQuality "1"]
[WhiteTeam "England"]
[WhiteTeamCountry "ENG"]
[TimeControl "40/5400+30:1800+30"]

1. d4 {[%emt 0:01:00]} Nf6 {[%emt 0:00:17]} 2. c3 {[%emt 0:00:06]} d5 {[%emt 0:00:15]} 3. Bf4 {[%emt 0:00:04]} e6 {[%emt 0:00:07]} 4. e3 {[%emt 0:00:04]} Bd6 {[%emt 0:00:03]} 5. Nf3 {[%emt 0:00:25]} b6 {[%emt 0:00:50]} 6. Nbd2 {[%emt 0:00:06]} Bb7 {[%emt 0:00:27]} 7. Ne5 {[%emt 0:00:40]} Nbd7 {[%emt 0:04:42]} 8. Bd3 {[%emt 0:03:53]} O-O {[%emt 0:02:34]} 9. Qf3 {[%emt 0:08:51]} Rb8 10. h4 {[%emt 0:03:34]} Bxe5 {[%emt 0:12:50]} 11. dxe5 {[%emt 0:10:02]} Nc5 {[%emt 0:11:13]} 12. Qe2 {[%emt 0:03:29]} Nxd3+ {[%emt 0:01:39]} 13. Qxd3 {[%emt 0:00:06]} Ne4 {[%emt 0:08:42]} 14. Nb3 {[%emt 0:15:08]} c5 {[%emt 0:12:32]} 15. Qe2 {[%emt 0:01:46]} c4 {[%emt 0:00:59]} 16. Nd4 {[%emt 0:00:05]} Nc5 {[%emt 0:01:17]} 17. Rd1 {[%emt 0:02:02]} Qd7 {[%emt 0:03:22]} 18. h5 {[%emt 0:03:04]} h6 {[%emt 0:01:45]} 19. g4 {[%emt 0:07:06]} Nd3+ {[%emt 0:02:07]} 20. Rxd3 {[%emt 0:03:55]} cxd3 {[%emt 0:00:03]} 21. Qxd3 {[%emt 0:00:07]} Qa4 {[%emt 0:01:24]} 22. a3 {[%emt 0:02:17]} Ba6 {[%emt 0:00:43]} 23. Qd2 {[%emt 0:01:16]} Qc4 {[%emt 0:01:33]} 24. Rg1 {[%emt 0:01:38]} Qd3 {[%emt 0:00:35]} 25. Qxd3 {[%emt 0:00:41]} Bxd3 {[%emt 0:00:04]} 26. Kd2 {[%emt 0:00:30]} Bh7 {[%emt 0:00:43]} 27. Nc6 {[%emt 0:02:22]} Rb7 {[%emt 0:00:22]} 28. g5 {[%emt 0:05:01]} hxg5 {[%emt 0:01:48]} 29. Bxg5 {[%emt 0:00:25]} Re8 {[%emt 0:08:43]} 30. Bf6 {[%emt 0:02:16]} Bg6 {[%emt 0:07:22]} 31. hxg6 {[%emt 0:01:20]} gxf6 {[%emt 0:00:04]} 32. exf6 {[%emt 0:00:22]} fxg6 {[%emt 0:01:38]} 33. Ne5 {[%emt 0:02:16]} a5 {[%emt 0:05:52]} 34. Rxg6+ {[%emt 0:00:29]} Kh7 {[%emt 0:00:08]} 35. Rg4 {[%emt 0:00:45]} Rf8 {[%emt 0:02:39]} 36. Rf4 {[%emt 0:00:06]} Rc7 {[%emt 0:03:03]} 37. Ke2 {[%emt 0:01:20]} Kh6 {[%emt 0:01:40]} 38. f7 {[%emt 0:01:05]} Kg5 {[%emt 0:02:46]} 39. Kd3 {[%emt 0:00:53]} Re7 {[%emt 0:01:13]} 40. Kd4 {[%emt 0:00:19]} Kh6 {[%emt 0:00:42]} 41. a4 {[%emt 0:31:49]} Rc7 {[%emt 0:31:42]} 42. Rf6+ {[%emt 0:00:30]} Kg7 {[%emt 0:00:00]} 43. Rg6+ {[%emt 0:00:00]} Kh7 {[%emt 0:00:00]} 44. Rxe6 {[%emt 0:00:00]} Rb7 {[%emt 0:00:00]} 45. Kxd5 {[%emt 0:00:00]} b5 {[%emt 0:00:00]} 46. b3 {[%emt 0:00:00]} bxa4 {[%emt 0:00:00]} 47. bxa4 {[%emt 0:00:00]} Kg7 {[%emt 0:00:00]} 48. Rg6+ {[%emt 0:00:00]} Kh7 {[%emt 0:00:00]} 49. Ra6 {[%emt 0:00:00]} Re7 {[%emt 0:00:00]} 50. f4 {[%emt 0:00:00]} Rxe5+ {[%emt 0:00:00]} 51. Kxe5 {[%emt 0:00:00]} Rxf7 {[%emt 0:00:00]} 52. Rxa5 {[%emt 0:00:00]} Rc7 {[%emt 0:00:00]} 53. e4 {[%emt 0:00:00]} Rxc3 {[%emt 0:00:00]} 54. f5 {[%emt 0:00:00]} Kg7 {[%emt 0:00:00]} 55. Ra7+ {[%emt 0:00:00]} Kf8 {[%emt 0:00:00]} 56. f6 {[%emt 0:00:00]} Rc6 {[%emt 0:00:00]} 57. Kf5 {[%emt 0:00:00]} Rc8 {[%emt 0:00:00]} 58. e5 {[%emt 0:00:00]} Kg8 {[%emt 0:00:00]} 59. e6 {[%emt 0:00:00]} Rc1 {[%emt 0:00:00]} 60. Ra8+ {[%emt 0:00:00]} Kh7 {[%emt 0:00:00]} 61. e7 {[%emt 0:00:00]} Rg1 {[%emt 0:02:12]} 62. Rh8+ {[%emt 0:00:00]} 1-0

[Event "FIDE WY-U16 Olympiad 2022"]
[Site "Nakhchivan"]
[Date "2022.10.04"]
[Round "3.29"]
[White "Soojay, Jorah"]
[Black "Ismayilova, Khanim"]
[Result "1-0"]
[ECO "B33"]
[WhiteElo "1644"]
[BlackElo "1848"]
[Annotator "NA RC COMBH"]
[PlyCount "107"]
[EventDate "2022.10.02"]
[EventType "team-tourn"]
[EventCountry "AZE"]
[SourceTitle "playchess.com"]
[Source "ChessBase"]
[SourceQuality "1"]
[WhiteTeam "South Africa"]
[BlackTeam "Azerbaijan"]
[WhiteTeamCountry "RSA"]
[BlackTeamCountry "AZE"]
[TimeControl "40/5400+30:1800+30"]

1. e4 {[%emt 0:00:02]} c5 {[%emt 0:00:08]} 2. Nf3 {[%emt 0:00:03]} Nc6 {[%emt 0:00:08]} 3. d4 {[%emt 0:00:03]} cxd4 {[%emt 0:00:08]} 4. Nxd4 {[%emt 0:00:03]} Nf6 {[%emt 0:00:08]} 5. Nc3 {[%emt 0:00:03]} e5 {[%emt 0:00:09]} 6. Ndb5 {[%emt 0:00:09]} d6 {[%emt 0:00:12]} 7. Bg5 {[%emt 0:00:05]} a6 {[%emt 0:00:05]} 8. Na3 {[%emt 0:00:04]} b5 {[%emt 0:00:05]} 9. Bxf6 {[%emt 0:00:05]} gxf6 {[%emt 0:00:10]} 10. Nd5 {[%emt 0:00:13]} f5 {[%emt 0:02:06]} 11. c3 {[%emt 0:08:18]} Be6 {[%emt 0:23:03] [#]} (11... Bg7 $14) 12. exf5 $1 {[%emt 0:01:36]} Bxf5 $16 {[%emt 0:00:19] [#]} ({Black should play} 12... Bxd5 13. Qxd5 Ne7) 13. Qf3 $1 {[%emt 0:03:40]} Bd7 {[%emt 0:28:42]} 14. Nf6+ {[%emt 0:06:25]} Ke7 {[%emt 0:00:08]} 15. Bd3 {[%emt 0:04:25]} Bg7 {[%emt 0:04:55]} 16. Nxd7 {[%emt 0:21:13]} Qxd7 {[%emt 0:00:35]} 17. Be4 {[%emt 0:00:46]} Rac8 {[%emt 0:05:18]} 18. Nc2 {[%emt 0:00:10]} Rc7 {[%emt 0:09:33]} 19. Bxc6 {[%emt 0:02:19]} Rxc6 {[%emt 0:03:21]} 20. Nb4 {[%emt 0:00:06]} Rc4 {[%emt 0:00:32]} 21. Nd5+ {[%emt 0:00:39]} Ke6 {[%emt 0:04:36]} 22. Nb6 {[%emt 0:00:13]} Qc6 {[%emt 0:00:40]} 23. Nxc4 {[%emt 0:01:08]} Qxf3 {[%emt 0:01:00]} 24. gxf3 {[%emt 0:00:06]} bxc4 {[%emt 0:00:04]} 25. Kd2 {[%emt 0:00:46]} d5 {[%emt 0:02:36]} 26. b3 {[%emt 0:01:25]} Rc8 {[%emt 0:00:51]} 27. Rab1 {[%emt 0:04:09]} Kf5 {[%emt 0:06:18]} 28. bxc4 {[%emt 0:02:51]} Rxc4 {[%emt 0:00:09]} 29. Rb4 {[%emt 0:00:24]} Rc7 {[%emt 0:02:30]} 30. Rg1 {[%emt 0:00:43]} Bh6+ {[%emt 0:02:44]} 31. Kd3 {[%emt 0:00:22]} Bf8 {[%emt 0:02:32]} 32. Ra4 {[%emt 0:02:07]} Rc6 {[%emt 0:00:18]} 33. Rg8 {[%emt 0:01:11]} Bc5 {[%emt 0:01:26]} 34. Rg7 {[%emt 0:01:43]} f6 {[%emt 0:00:56]} 35. Rxh7 {[%emt 0:00:36]} Bxf2 {[%emt 0:00:04]} 36. Rh8 {[%emt 0:00:41]} e4+ {[%emt 0:00:32]} 37. fxe4+ {[%emt 0:00:55]} dxe4+ {[%emt 0:00:03]} 38. Ke2 {[%emt 0:00:46]} e3 {[%emt 0:00:25]} 39. Ra5+ {[%emt 0:06:16]} Kg4 {[%emt 0:00:49]} 40. Rg8+ {[%emt 0:06:34]} Kf4 {[%emt 0:00:25]} 41. Rd8 {[%emt 0:30:07]} f5 {[%emt 0:31:44]} 42. Rdd5 {[%emt 0:00:36]} Rxc3 {[%emt 0:00:00]} 43. Rxf5+ {[%emt 0:00:00]} Ke4 {[%emt 0:00:00]} 44. Rfc5 {[%emt 0:00:00]} Rxc5 {[%emt 0:00:00]} 45. Rxc5 {[%emt 0:00:00]} Kf4 {[%emt 0:00:00]} 46. Ra5 {[%emt 0:00:00]} Kg4 {[%emt 0:00:00]} 47. Rxa6 {[%emt 0:00:00]} Kh3 {[%emt 0:00:00]} 48. Rh6+ {[%emt 0:00:00]} Kg4 {[%emt 0:00:00]} 49. a4 {[%emt 0:00:00]} Kf5 {[%emt 0:00:00]} 50. a5 {[%emt 0:00:00]} Kg5 {[%emt 0:00:00]} 51. Rh8 {[%emt 0:00:00]} Kg6 {[%emt 0:00:00]} 52. a6 {[%emt 0:00:00]} Kg7 {[%emt 0:00:00]} 53. Rh3 {[%emt 0:00:00]} Kg6 {[%emt 0:00:00]} 54. a7 {[%emt 0:00:00]} 1-0

[Event "FIDE WY-U16 Olympiad 2022"]
[Site "Nakhchivan"]
[Date "2022.10.04"]
[Round "3.30"]
[White "Nuriyeva, Nurtan"]
[Black "Chang, Sebastian"]
[Result "1-0"]
[ECO "A57"]
[WhiteElo "1651"]
[BlackElo "1430"]
[Annotator "NA RC COMBH"]
[PlyCount "109"]
[EventDate "2022.10.02"]
[EventType "team-tourn"]
[EventCountry "AZE"]
[SourceTitle "playchess.com"]
[Source "ChessBase"]
[SourceQuality "1"]
[WhiteTeam "Azerbaijan"]
[BlackTeam "South Africa"]
[WhiteTeamCountry "AZE"]
[BlackTeamCountry "RSA"]
[TimeControl "40/5400+30:1800+30"]

1. d4 {[%emt 0:00:16]} Nf6 {[%emt 0:00:06]} 2. c4 {[%emt 0:00:14]} c5 {[%emt 0:01:24]} 3. d5 {[%emt 0:00:58]} b5 {[%emt 0:00:07]} 4. e3 {[%emt 0:03:30]} d6 {[%emt 0:04:21]} 5. cxb5 {[%emt 0:02:09]} a6 {[%emt 0:01:36]} 6. Nc3 {[%emt 0:00:41]} g6 {[%emt 0:01:18]} 7. Nf3 {[%emt 0:01:02]} Bg7 {[%emt 0:01:35]} 8. h3 {[%emt 0:01:05]} O-O {[%emt 0:00:51]} 9. bxa6 {[%emt 0:05:22]} Bxa6 {[%emt 0:00:20]} 10. Bxa6 {[%emt 0:03:06]} Nxa6 {[%emt 0:00:21]} 11. O-O {[%emt 0:00:18]} Qb6 {[%emt 0:05:04]} 12. Re1 {[%emt 0:01:06]} Rfb8 {[%emt 0:01:08]} 13. e4 {[%emt 0:01:20]} Nd7 {[%emt 0:01:38]} 14. Re2 {[%emt 0:04:16]} c4 {[%emt 0:03:20]} 15. Be3 {[%emt 0:03:31]} Nac5 {[%emt 0:06:21]} 16. Rc1 {[%emt 0:14:21]} Qa6 {[%emt 0:12:03]} 17. Bd4 {[%emt 0:06:19]} Nd3 {[%emt 0:07:17]} 18. Rb1 {[%emt 0:01:17]} N7c5 {[%emt 0:06:28]} 19. Bxg7 {[%emt 0:01:47]} Kxg7 {[%emt 0:00:06]} 20. g3 {[%emt 0:01:46]} Na4 {[%emt 0:03:22]} 21. Nxa4 {[%emt 0:05:00]} Qxa4 {[%emt 0:00:25]} 22. b3 {[%emt 0:00:08]} Qa6 {[%emt 0:09:38]} 23. Qc2 {[%emt 0:15:07]} cxb3 {[%emt 0:03:59]} 24. axb3 {[%emt 0:05:43]} Nb4 {[%emt 0:06:43]} 25. Qc3+ {[%emt 0:00:41]} Kg8 {[%emt 0:00:12]} 26. Ree1 {[%emt 0:00:13]} Qb6 {[%emt 0:02:47]} 27. Qe3 {[%emt 0:03:28]} Qxe3 {[%emt 0:04:08]} 28. Rxe3 {[%emt 0:00:13]} Rc8 {[%emt 0:00:45]} 29. Nd4 {[%emt 0:00:08]} Ra2 {[%emt 0:01:05]} 30. Re2 {[%emt 0:00:51]} Rxe2 {[%emt 0:01:22]} 31. Nxe2 Rc2 {[%emt 0:00:22]} 32. Kf1 {[%emt 0:00:16]} Kf8 {[%emt 0:02:40]} 33. h4 {[%emt 0:01:02]} Ke8 {[%emt 0:00:53]} 34. Ra1 {[%emt 0:01:19]} Rb2 {[%emt 0:00:34]} 35. Ra8+ {[%emt 0:01:04]} Kd7 {[%emt 0:00:39]} 36. Ra7+ {[%emt 0:00:06]} Kd8 {[%emt 0:00:59]} 37. Nd4 {[%emt 0:01:53]} h5 {[%emt 0:02:48]} 38. Ra4 {[%emt 0:02:29]} Nd3 {[%emt 0:00:47]} 39. f4 {[%emt 0:00:51]} Nc5 {[%emt 0:02:27]} 40. Nc6+ {[%emt 0:01:11]} Ke8 {[%emt 0:00:54]} 41. Ra8+ {[%emt 0:30:10]} Kd7 {[%emt 0:30:08]} 42. Ra7+ {[%emt 0:00:06]} Ke8 {[%emt 0:00:51]} 43. b4 {[%emt 0:07:42]} Nd3 {[%emt 0:01:13]} 44. Rxe7+ {[%emt 0:00:33]} Kf8 {[%emt 0:00:06]} 45. Rd7 {[%emt 0:00:08]} Nxb4 {[%emt 0:00:32]} 46. Rd8+ {[%emt 0:00:12]} Kg7 {[%emt 0:00:09]} 47. Rxd6 {[%emt 0:01:52]} Nxc6 {[%emt 0:01:25]} 48. Rxc6 {[%emt 0:00:16]} Rb4 {[%emt 0:00:34]} 49. e5 {[%emt 0:00:09]} Rd4 {[%emt 0:00:33]} 50. d6 {[%emt 0:00:32]} Kf8 {[%emt 0:01:06]} 51. Rc8+ {[%emt 0:00:38]} Kg7 {[%emt 0:00:05]} 52. Rd8 {[%emt 0:00:13]} f6 {[%emt 0:02:31]} 53. e6 {[%emt 0:00:44]} Re4 {[%emt 0:01:31]} 54. e7 {[%emt 0:00:10]} Kf7 {[%emt 0:01:05]} 55. Rf8+ {[%emt 0:00:07]} 1-0

[Event "FIDE WY-U16 Olympiad 2022"]
[Site "Nakhchivan"]
[Date "2022.10.04"]
[Round "3.31"]
[White "Wang, Pei-Shan"]
[Black "Huseynli, Ayan"]
[Result "1-0"]
[ECO "C01"]
[WhiteElo "1315"]
[BlackElo "1492"]
[Annotator "NA RC COMBH"]
[PlyCount "57"]
[EventDate "2022.10.02"]
[EventType "team-tourn"]
[EventCountry "AZE"]
[SourceTitle "playchess.com"]
[Source "ChessBase"]
[SourceQuality "1"]
[WhiteTeam "South Africa"]
[BlackTeam "Azerbaijan"]
[WhiteTeamCountry "RSA"]
[BlackTeamCountry "AZE"]
[TimeControl "40/5400+30:1800+30"]

1. e4 {[%emt 0:00:02]} e6 {[%emt 0:00:04]} 2. d4 {[%emt 0:00:04]} d5 {[%emt 0:00:03]} 3. exd5 {[%emt 0:00:06]} exd5 {[%emt 0:00:06]} 4. Nf3 {[%emt 0:00:10]} Bd6 {[%emt 0:00:05]} 5. c4 {[%emt 0:00:07]} dxc4 {[%emt 0:01:24]} 6. Bxc4 {[%emt 0:00:06]} Nf6 {[%emt 0:02:20]} 7. Qe2+ {[%emt 0:01:27]} Qe7 {[%emt 0:02:04]} 8. Qxe7+ {[%emt 0:00:06]} Bxe7 {[%emt 0:03:25]} 9. Bf4 {[%emt 0:01:42]} c6 {[%emt 0:02:24]} 10. O-O {[%emt 0:01:46]} O-O {[%emt 0:00:50]} 11. Nc3 {[%emt 0:02:14]} Bg4 {[%emt 0:12:52]} 12. Ne5 {[%emt 0:03:22]} Nbd7 {[%emt 0:09:03]} 13. Nxg4 {[%emt 0:02:18]} Nxg4 {[%emt 0:00:12]} 14. d5 {[%emt 0:05:31]} Nge5 {[%emt 0:10:50]} 15. Be2 {[%emt 0:08:49]} cxd5 {[%emt 0:21:38]} 16. Nxd5 {[%emt 0:01:31]} Bc5 {[%emt 0:04:11]} 17. Rac1 {[%emt 0:06:25]} Ng6 {[%emt 0:05:27]} 18. Bg3 {[%emt 0:03:52]} Rac8 {[%emt 0:05:57]} 19. Bd3 {[%emt 0:05:31]} Nde5 {[%emt 0:09:10]} 20. Bf5 {[%emt 0:02:56]} Rc6 {[%emt 0:00:53]} 21. Rfd1 {[%emt 0:04:46]} f6 {[%emt 0:03:13]} 22. Kf1 {[%emt 0:03:06]} Be7 {[%emt 0:04:18]} 23. Bxe5 {[%emt 0:03:11]} fxe5 {[%emt 0:00:45]} 24. Bxg6 {[%emt 0:01:05]} Kh8 {[%emt 0:00:40]} 25. Nxe7 {[%emt 0:00:30]} Rcf6 {[%emt 0:00:11]} 26. f3 {[%emt 0:02:21]} hxg6 {[%emt 0:00:12]} 27. Re1 {[%emt 0:01:01]} Re6 {[%emt 0:00:26]} 28. Rxe5 {[%emt 0:00:11]} Rxe5 {[%emt 0:00:07]} 29. Nxg6+ {[%emt 0:00:05]} 1-0

[Event "FIDE WY-U16 Olympiad 2022"]
[Site "Nakhchivan"]
[Date "2022.10.04"]
[Round "3.32"]
[White "Huseynova, Dinara"]
[Black "Jacobs, Elsje"]
[Result "1-0"]
[ECO "B13"]
[WhiteElo "1225"]
[BlackElo "1168"]
[Annotator "NA RC COMBH"]
[PlyCount "125"]
[EventDate "2022.10.02"]
[EventType "team-tourn"]
[EventCountry "AZE"]
[SourceTitle "playchess.com"]
[Source "ChessBase"]
[SourceQuality "1"]
[BlackTeam "South Africa"]
[BlackTeamCountry "RSA"]
[TimeControl "40/5400+30:1800+30"]

1. e4 {[%emt 0:00:03]} c6 {[%emt 0:00:16]} 2. d4 {[%emt 0:00:04]} d5 {[%emt 0:00:17]} 3. exd5 {[%emt 0:00:06]} cxd5 {[%emt 0:00:10]} 4. Bd3 {[%emt 0:00:09]} Nc6 {[%emt 0:00:35]} 5. c3 {[%emt 0:00:23]} Nf6 {[%emt 0:00:23]} 6. Bf4 {[%emt 0:00:20]} g6 {[%emt 0:01:13]} 7. Nf3 {[%emt 0:01:39]} Bg7 {[%emt 0:00:27]} 8. O-O {[%emt 0:00:16]} Bg4 {[%emt 0:00:06]} 9. Nbd2 {[%emt 0:00:57]} O-O {[%emt 0:00:22]} 10. Re1 {[%emt 0:02:04]} Re8 {[%emt 0:02:01]} 11. h3 {[%emt 0:00:54]} Bh5 {[%emt 0:00:14]} 12. Qb3 {[%emt 0:04:27]} Bxf3 {[%emt 0:06:10]} 13. Nxf3 {[%emt 0:02:31]} Qd7 {[%emt 0:01:35]} 14. Ne5 {[%emt 0:01:13]} Qc8 {[%emt 0:05:47]} 15. Bg5 {[%emt 0:01:30]} e6 {[%emt 0:06:50]} 16. f4 {[%emt 0:03:16]} Nd7 {[%emt 0:07:18]} 17. Nxd7 {[%emt 0:07:40]} Qxd7 {[%emt 0:00:09]} 18. Rad1 {[%emt 0:04:06]} a6 {[%emt 0:02:24]} 19. Qc2 {[%emt 0:03:13]} b5 {[%emt 0:01:05]} 20. a3 {[%emt 0:01:50]} Rac8 {[%emt 0:01:46]} 21. Qf2 {[%emt 0:00:54]} Qa7 {[%emt 0:01:53]} 22. Kh1 {[%emt 0:04:27]} Na5 {[%emt 0:02:24]} 23. g4 {[%emt 0:01:13]} Nc4 {[%emt 0:01:31]} 24. Rf1 {[%emt 0:04:26]} f5 {[%emt 0:04:56]} 25. Bxc4 {[%emt 0:07:35]} dxc4 {[%emt 0:02:29]} 26. Rde1 {[%emt 0:02:37]} Qb7+ {[%emt 0:03:44]} 27. Qf3 {[%emt 0:00:08]} Qd5 {[%emt 0:01:45]} 28. Re3 {[%emt 0:04:16]} Kf7 {[%emt 0:02:11]} 29. Rfe1 {[%emt 0:00:08]} Bf8 {[%emt 0:00:44]} 30. Kg1 {[%emt 0:02:57]} Qxf3 {[%emt 0:00:50]} 31. Rxf3 {[%emt 0:00:08]} a5 {[%emt 0:02:01]} 32. gxf5 {[%emt 0:02:14]} exf5 {[%emt 0:00:50]} 33. Re5 {[%emt 0:04:04]} Rxe5 {[%emt 0:00:52]} 34. dxe5 {[%emt 0:01:32]} Be7 {[%emt 0:01:22]} 35. Bxe7 {[%emt 0:01:03]} Kxe7 {[%emt 0:00:07]} 36. Kf2 {[%emt 0:01:34]} Rd8 {[%emt 0:00:53]} 37. Ke2 {[%emt 0:00:29]} Ke6 {[%emt 0:00:33]} 38. h4 {[%emt 0:00:44]} Rb8 {[%emt 0:01:46]} 39. Kd2 {[%emt 0:04:02]} b4 {[%emt 0:00:21]} 40. cxb4 {[%emt 0:00:34]} axb4 {[%emt 0:00:16]} 41. axb4 {[%emt 0:30:03]} Rxb4 {[%emt 0:30:18]} 42. Kc2 {[%emt 0:00:14]} Kd5 {[%emt 0:02:30]} 43. Rf1 {[%emt 0:05:16]} Ke4 {[%emt 0:02:03]} 44. e6 {[%emt 0:05:48]} Rb8 {[%emt 0:00:46]} 45. e7 {[%emt 0:00:31]} Re8 {[%emt 0:00:06]} 46. Kd2 {[%emt 0:00:30]} h6 {[%emt 0:01:14]} 47. Rf2 {[%emt 0:01:08]} Kd5 {[%emt 0:07:17]} 48. Re2 {[%emt 0:00:14]} Kd6 {[%emt 0:02:40]} 49. Kc3 {[%emt 0:00:05]} Rxe7 {[%emt 0:00:59]} 50. Rxe7 {[%emt 0:00:03]} Kxe7 {[%emt 0:00:08]} 51. Kxc4 {[%emt 0:00:02]} g5 {[%emt 0:00:36]} 52. fxg5 {[%emt 0:00:40]} hxg5 {[%emt 0:01:56]} 53. hxg5 {[%emt 0:00:04]} Ke6 {[%emt 0:02:18]} 54. b4 {[%emt 0:00:37]} f4 {[%emt 0:01:41]} 55. b5 {[%emt 0:00:31]} Kf5 {[%emt 0:05:07]} 56. b6 {[%emt 0:01:01]} Kxg5 {[%emt 0:00:17]} 57. b7 Kg4 {[%emt 0:01:52]} 58. b8=Q {[%emt 0:00:25]} Kg3 {[%emt 0:00:29]} 59. Kd3 {[%emt 0:02:57]} Kf3 {[%emt 0:01:18]} 60. Kd2 {[%emt 0:00:23]} Kg3 61. Ke2 {[%emt 0:01:55]} Kg2 {[%emt 0:06:40]} 62. Qg8+ {[%emt 0:00:23]} Kh2 {[%emt 0:01:02]} 63. Kf3 1-0

[Event "FIDE WY-U16 Olympiad 2022"]
[Site "Nakhchivan"]
[Date "2022.10.04"]
[Round "3.33"]
[White "Cheng, Justin Hong-Chen"]
[Black "Abdel Raouf, Zyad"]
[Result "0-1"]
[ECO "D11"]
[WhiteElo "1843"]
[BlackElo "1609"]
[Annotator "NA RC COMBH"]
[PlyCount "90"]
[EventDate "2022.10.02"]
[EventType "team-tourn"]
[EventCountry "AZE"]
[SourceTitle "playchess.com"]
[Source "ChessBase"]
[SourceQuality "1"]
[WhiteTeam "Hong Kong"]
[BlackTeam "Egypt"]
[WhiteTeamCountry "HKG"]
[BlackTeamCountry "EGY"]
[TimeControl "40/5400+30:1800+30"]

1. d4 {[%emt 0:00:05]} d5 {[%emt 0:00:05]} 2. Nf3 {[%emt 0:00:12]} c6 {[%emt 0:00:11]} 3. c4 {[%emt 0:01:08]} Nf6 {[%emt 0:00:07]} 4. e3 {[%emt 0:00:09]} e6 {[%emt 0:06:53]} 5. Bd3 {[%emt 0:01:26]} Bd6 {[%emt 0:00:55]} 6. O-O {[%emt 0:00:33]} Nbd7 {[%emt 0:00:46]} 7. Nc3 {[%emt 0:01:23]} O-O {[%emt 0:04:00]} 8. e4 {[%emt 0:04:53]} dxc4 {[%emt 0:05:05]} 9. Bxc4 {[%emt 0:01:25]} e5 {[%emt 0:01:02]} 10. Bg5 {[%emt 0:13:51]} exd4 $11 {[%emt 0:10:59]} 11. Qxd4 {[%emt 0:06:06]} Bc5 {[%emt 0:10:11]} 12. Qd3 {[%emt 0:09:21]} Qe7 {[%emt 0:04:47]} 13. Kh1 {[%emt 0:14:38]} Ne5 {[%emt 0:05:32]} 14. Nxe5 {[%emt 0:00:09]} Qxe5 {[%emt 0:00:03]} 15. f4 {[%emt 0:00:41]} Qd4 {[%emt 0:01:40]} 16. Qxd4 {[%emt 0:02:15]} Bxd4 {[%emt 0:00:21]} 17. Rad1 {[%emt 0:01:05]} Bxc3 {[%emt 0:02:22]} 18. bxc3 {[%emt 0:00:04]} Nxe4 {[%emt 0:00:28]} 19. Rd4 {[%emt 0:15:16]} Re8 {[%emt 0:13:02]} 20. Kg1 {[%emt 0:06:57]} c5 {[%emt 0:07:03]} 21. Rdd1 {[%emt 0:03:06]} Nxc3 {[%emt 0:02:25]} 22. Rc1 {[%emt 0:06:23]} b5 {[%emt 0:10:25]} 23. Rxc3 {[%emt 0:02:09]} bxc4 {[%emt 0:00:01]} 24. Rd1 {[%emt 0:00:48]} f6 {[%emt 0:01:15]} 25. Bh4 {[%emt 0:00:13]} Be6 {[%emt 0:01:26]} 26. Bf2 {[%emt 0:02:36]} Rad8 {[%emt 0:01:08]} 27. Rdc1 {[%emt 0:01:01]} Rd2 {[%emt 0:01:16]} 28. a3 {[%emt 0:00:38]} Bd5 {[%emt 0:05:24]} 29. R3c2 {[%emt 0:00:18]} Ree2 {[%emt 0:00:17]} 30. Rxd2 {[%emt 0:00:05]} Rxd2 {[%emt 0:00:13]} 31. Kf1 {[%emt 0:00:51]} Kf7 {[%emt 0:03:28]} 32. g3 {[%emt 0:01:44]} a6 {[%emt 0:01:16]} 33. Bxc5 {[%emt 0:02:19]} Rxh2 {[%emt 0:00:04]} 34. Re1 {[%emt 0:01:47]} Kg6 {[%emt 0:01:34]} 35. Bg1 {[%emt 0:01:15]} Ra2 {[%emt 0:00:26]} 36. Bc5 {[%emt 0:00:37]} Kf5 {[%emt 0:00:37]} 37. Rd1 {[%emt 0:00:35]} Be4 {[%emt 0:00:28]} 38. Bb4 {[%emt 0:00:44]} Kg4 {[%emt 0:00:51]} 39. Rd7 {[%emt 0:00:31]} Kf3 {[%emt 0:00:33]} 40. Rxg7 {[%emt 0:00:28]} Ra1+ {[%emt 0:00:22]} 41. Be1 {[%emt 0:30:04]} Bd3+ {[%emt 0:30:02]} 42. Kg1 {[%emt 0:00:14]} Rxe1+ {[%emt 0:00:13]} 43. Kh2 {[%emt 0:00:04]} c3 {[%emt 0:00:29]} 44. Rd7 {[%emt 0:00:11]} Be4 {[%emt 0:00:33]} 45. Rd3+ {[%emt 0:00:28]} Bxd3 {[%emt 0:00:06]} 0-1

[Event "FIDE WY-U16 Olympiad 2022"]
[Site "Nakhchivan"]
[Date "2022.10.04"]
[Round "3.34"]
[White "Fahmi, Adham"]
[Black "Li, Yiheng"]
[Result "0-1"]
[ECO "A02"]
[WhiteElo "1288"]
[BlackElo "1766"]
[Annotator "NA RC COMBH"]
[PlyCount "88"]
[EventDate "2022.10.02"]
[EventType "team-tourn"]
[EventCountry "AZE"]
[SourceTitle "playchess.com"]
[Source "ChessBase"]
[SourceQuality "1"]
[WhiteTeam "Egypt"]
[BlackTeam "Hong Kong"]
[WhiteTeamCountry "EGY"]
[BlackTeamCountry "HKG"]
[TimeControl "40/5400+30:1800+30"]

1. f4 {[%emt 0:00:26]} g6 {[%emt 0:00:19]} 2. Nf3 {[%emt 0:00:26]} Bg7 {[%emt 0:00:16]} 3. e3 {[%emt 0:03:02]} c5 {[%emt 0:02:22]} 4. d4 {[%emt 0:03:43]} cxd4 {[%emt 0:01:46]} 5. exd4 {[%emt 0:00:08]} h5 {[%emt 0:04:13]} 6. b3 {[%emt 0:02:25]} Nh6 {[%emt 0:01:56]} 7. Bd3 {[%emt 0:02:48]} d5 {[%emt 0:01:20]} 8. O-O {[%emt 0:03:16]} O-O {[%emt 0:01:37]} 9. Re1 {[%emt 0:02:39]} Bg4 {[%emt 0:01:46]} 10. Nbd2 {[%emt 0:00:46]} Bxd4+ {[%emt 0:00:24]} 11. Nxd4 {[%emt 0:05:06]} Bxd1 {[%emt 0:00:07]} 12. Rxd1 {[%emt 0:00:09]} Qb6 {[%emt 0:01:03]} 13. N2f3 {[%emt 0:02:26]} Nc6 {[%emt 0:00:41]} 14. c3 {[%emt 0:05:20]} Nxd4 {[%emt 0:00:34]} 15. cxd4 {[%emt 0:00:31]} e6 {[%emt 0:03:04]} 16. Ba3 {[%emt 0:02:43]} Rfc8 {[%emt 0:00:34]} 17. Bc5 {[%emt 0:00:08]} Rxc5 {[%emt 0:02:32]} 18. dxc5 {[%emt 0:00:50]} Qxc5+ {[%emt 0:00:06]} 19. Kf1 {[%emt 0:04:25]} Ng4 {[%emt 0:00:14]} 20. Rd2 {[%emt 0:03:20]} Ne3+ {[%emt 0:01:03]} 21. Ke1 {[%emt 0:00:02]} Nxg2+ {[%emt 0:00:37]} 22. Kd1 {[%emt 0:13:33]} Nxf4 {[%emt 0:00:36]} 23. Rc1 {[%emt 0:02:00]} Qe3 {[%emt 0:00:12]} 24. Ne1 {[%emt 0:02:01]} Nh3 {[%emt 0:00:43]} 25. Rcc2 {[%emt 0:00:49]} Nf4 {[%emt 0:00:56]} 26. Rc3 {[%emt 0:02:19]} e5 {[%emt 0:01:07]} 27. Rcc2 {[%emt 0:07:11]} e4 {[%emt 0:00:21]} 28. Bf1 {[%emt 0:03:46]} d4 {[%emt 0:01:16]} 29. Rc4 {[%emt 0:05:23]} d3 {[%emt 0:01:22]} 30. Bg2 {[%emt 0:02:32]} f5 {[%emt 0:01:00]} 31. Rc7 {[%emt 0:03:09]} Nxg2 {[%emt 0:00:28]} 32. Rxg2 {[%emt 0:00:31]} g5 {[%emt 0:00:29]} 33. h4 {[%emt 0:02:41]} g4 {[%emt 0:00:16]} 34. b4 {[%emt 0:02:24]} f4 {[%emt 0:02:30]} 35. Rc5 {[%emt 0:00:45]} f3 {[%emt 0:00:46]} 36. Rg5+ {[%emt 0:04:22]} Qxg5 {[%emt 0:00:26]} 37. hxg5 {[%emt 0:00:15]} fxg2 {[%emt 0:00:09]} 38. Nxg2 {[%emt 0:00:01]} Rf8 {[%emt 0:00:51]} 39. Ne3 {[%emt 0:00:52]} g3 {[%emt 0:00:20]} 40. Ke1 {[%emt 0:01:10]} h4 {[%emt 0:00:20]} 41. Ng4 {[%emt 0:30:53]} g2 {[%emt 0:30:22]} 42. Nf6+ {[%emt 0:01:10]} Rxf6 {[%emt 0:00:06]} 43. gxf6 {[%emt 0:00:17]} e3 {[%emt 0:00:12]} 44. a4 {[%emt 0:00:19]} g1=Q# 0-1